[Event "November 21 Late 2023"]
[Site "https://www.chess.com"]
[Date "2023.11.21"]
[Round "4"]
[White "Mazzilli, Piero"]
[Black "Musovic, Armin"]
[Result "0-1"]
[Board "107"]
[TimeControl "180+1"]
[WhiteFideId "807087"]
[BlackFideId "939935"]
[WhiteElo "2363"]
[BlackElo "2322"]
[WhiteTeam "ITA"]
[BlackTeam "MNE"]
[WhiteClock "0:00:05"]
[BlackClock "0:01:56"]

1. e4 {[%clk 0:03:00]}  c6 {[%clk 0:03:00]} 2. c4 {[%clk 0:03:00]}  d5 {[%clk 0:03:01]} 3. cxd5 {[%clk 0:03:01]}  cxd5 {[%clk 0:03:01]} 4. exd5 {[%clk 0:03:01]}  e6 {[%clk 0:03:02]} 5. dxe6 {[%clk 0:03:01]}  Bxe6 {[%clk 0:03:03]} 6. d4 {[%clk 0:03:01]}  Nc6 {[%clk 0:03:03]} 7. Nf3 {[%clk 0:03:01]}  Nf6 {[%clk 0:03:04]} 8. Nc3 {[%clk 0:03:00]}  a6 {[%clk 0:03:04]} 9. Be2 {[%clk 0:03:00]}  Bd6 {[%clk 0:03:04]} 10. Bg5 {[%clk 0:02:53]}  Ne7 {[%clk 0:02:53]} 11. Bxf6 {[%clk 0:02:45]}  gxf6 {[%clk 0:02:54]} 12. d5 {[%clk 0:02:45]}  Bf5 {[%clk 0:02:52]} 13. O-O {[%clk 0:02:29]}  Rg8 {[%clk 0:02:52]} 14. Nd4 {[%clk 0:02:24]}  Qc7 {[%clk 0:02:39]} 15. Nxf5 {[%clk 0:02:09]}  Nxf5 {[%clk 0:02:37]} 16. h3 {[%clk 0:01:51]}  Nh4 {[%clk 0:02:31]} 17. Bf3 {[%clk 0:01:31]}  O-O-O {[%clk 0:02:24]} 18. Rc1 {[%clk 0:01:28]}  Kb8 {[%clk 0:02:19]} 19. Nb5 {[%clk 0:01:02]}  Bh2+ {[%clk 0:02:15]} 20. Kh1 {[%clk 0:01:01]}  Qb6 {[%clk 0:02:04]} 21. Kxh2 {[%clk 0:00:42]}  axb5 {[%clk 0:02:04]} 22. g3 {[%clk 0:00:20]}  Qd6 {[%clk 0:01:59]} 23. Kh1 {[%clk 0:00:18]}  Nxf3 {[%clk 0:01:58]} 24. Qxf3 {[%clk 0:00:19]}  Qxd5 {[%clk 0:01:59]} 25. Qxd5 {[%clk 0:00:18]}  Rxd5 {[%clk 0:02:00]} 26. Rc2 {[%clk 0:00:18]}  f5 {[%clk 0:01:58]} 27. Kg2 {[%clk 0:00:17]}  f4 {[%clk 0:01:58]} 28. g4 {[%clk 0:00:17]}  Rd3 {[%clk 0:01:57]} 29. f3 {[%clk 0:00:16]}  Rgd8 {[%clk 0:01:57]} 30. Rfc1 {[%clk 0:00:16]}  Rd2+ {[%clk 0:01:57]} 31. Kg1 {[%clk 0:00:16]}  Rd1+ {[%clk 0:01:57]} 32. Kf2 {[%clk 0:00:15]}  R8d2+ {[%clk 0:01:58]} 33. Rxd2 {[%clk 0:00:16]}  Rxd2+ {[%clk 0:01:58]} 34. Kg1 {[%clk 0:00:16]}  Rxb2 {[%clk 0:01:59]} 35. Re1 {[%clk 0:00:17]}  Rxa2 {[%clk 0:01:58]} 36. Re7 {[%clk 0:00:16]}  b4 {[%clk 0:01:57]} 37. Re4 {[%clk 0:00:16]}  b3 {[%clk 0:01:57]} 38. Rb4 {[%clk 0:00:05]}  b2 {[%clk 0:01:56]} 0-1

[Event "November 21 Late 2023"]
[Site "https://www.chess.com"]
[Date "2023.11.21"]
[Round "4"]
[White "Todorovic, Bojan"]
[Black "Mazurkiewicz, Michal"]
[Result "1-0"]
[Board "108"]
[TimeControl "180+1"]
[WhiteFideId "917087"]
[BlackFideId "1124943"]
[WhiteElo "2266"]
[BlackElo "2124"]
[WhiteTeam "SRB"]
[BlackTeam "POL"]
[WhiteClock "0:00:14"]
[BlackClock "0:00:08"]

1. d4 {[%clk 0:02:59]}  Nf6 {[%clk 0:02:59]} 2. c4 {[%clk 0:02:58]}  e5 {[%clk 0:02:59]} 3. dxe5 {[%clk 0:02:54]}  Ng4 {[%clk 0:02:59]} 4. Bf4 {[%clk 0:02:53]}  Nc6 {[%clk 0:02:58]} 5. Nf3 {[%clk 0:02:52]}  Bb4+ {[%clk 0:02:58]} 6. Nc3 {[%clk 0:02:48]}  Qe7 {[%clk 0:02:56]} 7. Qd5 {[%clk 0:02:47]}  f6 {[%clk 0:02:53]} 8. exf6 {[%clk 0:02:46]}  Nxf6 {[%clk 0:02:54]} 9. Qd3 {[%clk 0:02:46]}  d6 {[%clk 0:02:49]} 10. g3 {[%clk 0:02:41]}  Ne4 {[%clk 0:02:40]} 11. Bg2 {[%clk 0:02:30]}  Bf5 {[%clk 0:02:34]} 12. Nh4 {[%clk 0:01:37]}  g6 {[%clk 0:01:36]} 13. Nxf5 {[%clk 0:01:34]}  gxf5 {[%clk 0:01:37]} 14. O-O {[%clk 0:01:33]}  Bxc3 {[%clk 0:01:37]} 15. bxc3 {[%clk 0:01:33]}  O-O {[%clk 0:01:32]} 16. Rab1 {[%clk 0:01:27]}  b6 {[%clk 0:01:30]} 17. Qd5+ {[%clk 0:01:26]}  Kh8 {[%clk 0:01:24]} 18. Qxc6 {[%clk 0:01:26]}  Nxc3 {[%clk 0:01:24]} 19. Be3 {[%clk 0:01:08]}  Nxb1 {[%clk 0:01:14]} 20. Rxb1 {[%clk 0:01:07]}  h5 {[%clk 0:01:01]} 21. Bd4+ {[%clk 0:00:58]}  Kh7 {[%clk 0:01:01]} 22. e4 {[%clk 0:00:50]}  f4 {[%clk 0:00:56]} 23. Qd5 {[%clk 0:00:43]}  Qf7 {[%clk 0:00:46]} 24. e5 {[%clk 0:00:31]}  f3 {[%clk 0:00:40]} 25. e6 {[%clk 0:00:20]}  Qg6 {[%clk 0:00:32]} 26. Bxf3 {[%clk 0:00:16]}  Qxb1+ {[%clk 0:00:29]} 27. Kg2 {[%clk 0:00:16]}  Qf5 {[%clk 0:00:28]} 28. Be4 {[%clk 0:00:16]}  Qxe4+ {[%clk 0:00:18]} 29. Qxe4+ {[%clk 0:00:16]}  Kh6 {[%clk 0:00:19]} 30. e7 {[%clk 0:00:16]}  Rg8 {[%clk 0:00:17]} 31. Qe6+ {[%clk 0:00:15]}  Rg6 {[%clk 0:00:16]} 32. Qf7 {[%clk 0:00:15]}  Rgg8 {[%clk 0:00:15]} 33. Be3+ {[%clk 0:00:14]}  Rg5 {[%clk 0:00:13]} 34. h4 {[%clk 0:00:14]}  Rg8 {[%clk 0:00:13]} 35. hxg5+ {[%clk 0:00:14]}  Rxg5 {[%clk 0:00:08]} 36. e8=Q {[%clk 0:00:14]} 1-0

[Event "November 21 Late 2023"]
[Site "https://www.chess.com"]
[Date "2023.11.21"]
[Round "4"]
[White "Serban, Cristian-Stefan"]
[Black "Szente Varga, Fruzsina"]
[Result "1-0"]
[Board "111"]
[TimeControl "180+1"]
[WhiteFideId "1241443"]
[BlackFideId "712264"]
[WhiteElo "2028"]
[BlackElo "1994"]
[WhiteTeam "ROU"]
[BlackTeam "HUN"]
[WhiteClock "0:00:09"]
[BlackClock "0:00:05"]

1. d4 {[%clk 0:03:00]}  Nf6 {[%clk 0:02:59]} 2. Bf4 {[%clk 0:03:01]}  g6 {[%clk 0:03:00]} 3. Nc3 {[%clk 0:03:01]}  Bg7 {[%clk 0:03:01]} 4. e4 {[%clk 0:03:01]}  d6 {[%clk 0:03:00]} 5. Qd2 {[%clk 0:03:02]}  c6 {[%clk 0:02:59]} 6. f3 {[%clk 0:02:53]}  b5 {[%clk 0:02:58]} 7. g4 {[%clk 0:02:21]}  h5 {[%clk 0:02:53]} 8. g5 {[%clk 0:02:20]}  Nfd7 {[%clk 0:02:53]} 9. h4 {[%clk 0:02:20]}  Qb6 {[%clk 0:02:45]} 10. Nce2 {[%clk 0:02:16]}  c5 {[%clk 0:02:43]} 11. dxc5 {[%clk 0:02:12]}  Nxc5 {[%clk 0:02:43]} 12. Rb1 {[%clk 0:02:01]}  Nc6 {[%clk 0:02:38]} 13. Be3 {[%clk 0:01:59]}  a5 {[%clk 0:02:38]} 14. Bh3 {[%clk 0:01:55]}  Ne5 {[%clk 0:02:30]} 15. b3 {[%clk 0:01:27]}  Bxh3 {[%clk 0:02:24]} 16. Rxh3 {[%clk 0:01:28]}  Qc6 {[%clk 0:02:15]} 17. Nd4 {[%clk 0:01:26]}  Qb7 {[%clk 0:02:07]} 18. Nge2 {[%clk 0:01:15]}  O-O {[%clk 0:01:58]} 19. Nf4 {[%clk 0:01:12]}  Nc6 {[%clk 0:01:20]} 20. Nd5 {[%clk 0:01:08]}  Qd7 {[%clk 0:00:49]} 21. Rg3 {[%clk 0:01:05]}  Be5 {[%clk 0:00:45]} 22. Rg1 {[%clk 0:00:38]}  Kh7 {[%clk 0:00:28]} 23. Nb6 {[%clk 0:00:31]}  Qb7 {[%clk 0:00:18]} 24. Nxa8 {[%clk 0:00:31]}  Rxa8 {[%clk 0:00:18]} 25. Nxc6 {[%clk 0:00:29]}  Qxc6 {[%clk 0:00:19]} 26. Qd5 {[%clk 0:00:30]}  Qxd5 {[%clk 0:00:18]} 27. exd5 {[%clk 0:00:31]}  Bc3+ {[%clk 0:00:18]} 28. Ke2 {[%clk 0:00:30]}  Nd7 {[%clk 0:00:18]} 29. f4 {[%clk 0:00:29]}  b4 {[%clk 0:00:16]} 30. Rgd1 {[%clk 0:00:28]}  Kg7 {[%clk 0:00:16]} 31. Bd4+ {[%clk 0:00:28]}  Bxd4 {[%clk 0:00:16]} 32. Rxd4 {[%clk 0:00:29]}  Rc8 {[%clk 0:00:17]} 33. Rc4 {[%clk 0:00:29]}  Nc5 {[%clk 0:00:16]} 34. Ke3 {[%clk 0:00:27]}  Rb8 {[%clk 0:00:16]} 35. Kd4 {[%clk 0:00:26]}  Rb5 {[%clk 0:00:16]} 36. a4 {[%clk 0:00:22]}  Rb7 {[%clk 0:00:12]} 37. Re1 {[%clk 0:00:22]}  Kf8 {[%clk 0:00:12]} 38. Rf1 {[%clk 0:00:19]}  e6 {[%clk 0:00:10]} 39. dxe6 {[%clk 0:00:19]}  fxe6 {[%clk 0:00:10]} 40. Ke3 {[%clk 0:00:17]}  Ke7 {[%clk 0:00:11]} 41. Rd1 {[%clk 0:00:17]}  Rd7 {[%clk 0:00:11]} 42. Rcd4 {[%clk 0:00:17]}  Rd8 {[%clk 0:00:10]} 43. R1d2 {[%clk 0:00:15]}  d5 {[%clk 0:00:10]} 44. Kf3 {[%clk 0:00:12]}  Rc8 {[%clk 0:00:10]} 45. Re2 {[%clk 0:00:12]}  Ne4 {[%clk 0:00:10]} 46. Rd3 {[%clk 0:00:10]}  Nc3 {[%clk 0:00:08]} 47. Re5 {[%clk 0:00:09]}  Ne4 {[%clk 0:00:09]} 48. Rdxd5 {[%clk 0:00:06]}  Rxc2 {[%clk 0:00:07]} 49. Rxa5 {[%clk 0:00:07]}  Nd2+ {[%clk 0:00:06]} 50. Ke3 {[%clk 0:00:06]}  Nxb3 {[%clk 0:00:06]} 51. Ra7+ {[%clk 0:00:06]}  Kd6 {[%clk 0:00:06]} 52. Ra6+ {[%clk 0:00:07]}  Kd7 {[%clk 0:00:07]} 53. Rexe6 {[%clk 0:00:06]}  Nc5 {[%clk 0:00:07]} 54. Rad6+ {[%clk 0:00:06]}  Kc7 {[%clk 0:00:07]} 55. Rc6+ {[%clk 0:00:07]}  Kd7 {[%clk 0:00:06]} 56. Rxg6 {[%clk 0:00:07]}  Rc3+ {[%clk 0:00:05]} 57. Kd4 {[%clk 0:00:06]}  Nb3+ {[%clk 0:00:06]} 58. Kd5 {[%clk 0:00:06]}  Rd3+ {[%clk 0:00:05]} 59. Ke4 {[%clk 0:00:07]}  Rd4+ {[%clk 0:00:06]} 60. Ke3 {[%clk 0:00:07]}  Rd1 {[%clk 0:00:06]} 61. Rc4 {[%clk 0:00:07]}  Nc1 {[%clk 0:00:05]} 62. Rxb4 {[%clk 0:00:07]}  Na2 {[%clk 0:00:05]} 63. Rb7+ {[%clk 0:00:06]}  Kc8 {[%clk 0:00:04]} 64. Rh7 {[%clk 0:00:07]}  Rd8 {[%clk 0:00:04]} 65. Rgg7 {[%clk 0:00:08]}  Re8+ {[%clk 0:00:04]} 66. Kf3 {[%clk 0:00:08]}  Nb4 {[%clk 0:00:05]} 67. Rc7+ {[%clk 0:00:08]}  Kb8 {[%clk 0:00:05]} 68. Rb7+ {[%clk 0:00:09]}  Ka8 {[%clk 0:00:05]} 69. Rxb4 {[%clk 0:00:09]} 1-0

[Event "November 21 Late 2023"]
[Site "https://www.chess.com"]
[Date "2023.11.21"]
[Round "4"]
[White "Pourkashiyan, Atousa"]
[Black "Cooper, Aaron"]
[Result "0-1"]
[Board "115"]
[TimeControl "180+1"]
[WhiteFideId "12502014"]
[BlackFideId "2634945"]
[WhiteElo "2221"]
[BlackElo "2331"]
[WhiteTeam "USA"]
[BlackTeam "CAN"]
[WhiteClock "0:00:21"]
[BlackClock "0:01:00"]

1. e4 {[%clk 0:02:54]}  d5 {[%clk 0:02:59]} 2. exd5 {[%clk 0:02:54]}  Qxd5 {[%clk 0:03:00]} 3. Nc3 {[%clk 0:02:54]}  Qd6 {[%clk 0:03:00]} 4. d4 {[%clk 0:02:54]}  Nf6 {[%clk 0:03:00]} 5. Nf3 {[%clk 0:02:54]}  c6 {[%clk 0:03:00]} 6. Ne5 {[%clk 0:02:54]}  Nbd7 {[%clk 0:03:00]} 7. Bf4 {[%clk 0:02:54]}  Nxe5 {[%clk 0:02:59]} 8. Bxe5 {[%clk 0:02:54]}  Qb4 {[%clk 0:02:57]} 9. Rb1 {[%clk 0:02:50]}  Be6 {[%clk 0:02:50]} 10. Be2 {[%clk 0:02:31]}  Bxa2 {[%clk 0:02:40]} 11. Ra1 {[%clk 0:02:23]}  Bd5 {[%clk 0:02:37]} 12. O-O {[%clk 0:02:19]}  e6 {[%clk 0:02:19]} 13. Bxf6 {[%clk 0:02:11]}  gxf6 {[%clk 0:02:19]} 14. Nxd5 {[%clk 0:02:12]}  cxd5 {[%clk 0:02:16]} 15. c4 {[%clk 0:02:11]}  dxc4 {[%clk 0:02:06]} 16. Ra4 {[%clk 0:02:11]}  Qxb2 {[%clk 0:02:04]} 17. Bxc4 {[%clk 0:02:09]}  Bd6 {[%clk 0:01:51]} 18. Qd3 {[%clk 0:01:49]}  Qb6 {[%clk 0:01:37]} 19. Rb1 {[%clk 0:01:38]}  Qc7 {[%clk 0:01:37]} 20. Bb5+ {[%clk 0:01:37]}  Ke7 {[%clk 0:01:37]} 21. h3 {[%clk 0:01:36]}  a6 {[%clk 0:01:31]} 22. Bc4 {[%clk 0:01:16]}  b5 {[%clk 0:01:29]} 23. Qf3 {[%clk 0:01:16]}  bxa4 {[%clk 0:01:17]} 24. Rb7 {[%clk 0:01:14]}  Rac8 {[%clk 0:01:07]} 25. Bxa6 {[%clk 0:01:12]}  Qxb7 {[%clk 0:01:02]} 26. Qxb7+ {[%clk 0:01:10]}  Rc7 {[%clk 0:01:03]} 27. Qb5 {[%clk 0:00:21]}  Rc1+ {[%clk 0:01:00]} 0-1

[Event "November 21 Late 2023"]
[Site "https://www.chess.com"]
[Date "2023.11.21"]
[Round "4"]
[White "Ongut, Tamas Gunes"]
[Black "Silvestre, Christian"]
[Result "0-1"]
[Board "118"]
[TimeControl "180+1"]
[WhiteFideId "770280"]
[BlackFideId "30956269"]
[WhiteElo "2148"]
[BlackElo "2324"]
[WhiteTeam "HUN"]
[BlackTeam "USA"]
[WhiteClock "0:00:44"]
[BlackClock "0:00:24"]

1. g3 {[%clk 0:02:51]}  g6 {[%clk 0:02:57]} 2. Bg2 {[%clk 0:02:51]}  Bg7 {[%clk 0:02:57]} 3. c4 {[%clk 0:02:52]}  Nf6 {[%clk 0:02:58]} 4. Nc3 {[%clk 0:02:51]}  O-O {[%clk 0:02:58]} 5. d4 {[%clk 0:02:44]}  d6 {[%clk 0:02:59]} 6. e4 {[%clk 0:02:38]}  Nc6 {[%clk 0:02:52]} 7. Nge2 {[%clk 0:02:37]}  e5 {[%clk 0:02:50]} 8. d5 {[%clk 0:02:36]}  Ne7 {[%clk 0:02:48]} 9. O-O {[%clk 0:02:26]}  Nd7 {[%clk 0:02:46]} 10. Be3 {[%clk 0:02:21]}  f5 {[%clk 0:02:46]} 11. f4 {[%clk 0:02:22]}  exf4 {[%clk 0:02:34]} 12. Nxf4 {[%clk 0:02:20]}  Ne5 {[%clk 0:02:31]} 13. Bd4 {[%clk 0:01:46]}  fxe4 {[%clk 0:02:26]} 14. Ne6 {[%clk 0:01:38]}  Bxe6 {[%clk 0:02:24]} 15. dxe6 {[%clk 0:01:39]}  Nf5 {[%clk 0:02:20]} 16. Bxe5 {[%clk 0:01:34]}  Bxe5 {[%clk 0:02:17]} 17. Qd5 {[%clk 0:01:32]}  Qe7 {[%clk 0:02:03]} 18. Qxb7 {[%clk 0:01:27]}  Rab8 {[%clk 0:01:50]} 19. Qxe4 {[%clk 0:01:08]}  Rxb2 {[%clk 0:01:46]} 20. Nd5 {[%clk 0:01:05]}  Qxe6 {[%clk 0:01:40]} 21. Nxc7 {[%clk 0:01:04]}  Bd4+ {[%clk 0:01:33]} 22. Kh1 {[%clk 0:01:04]}  Qxe4 {[%clk 0:01:30]} 23. Bxe4 {[%clk 0:01:05]}  Re2 {[%clk 0:00:59]} 24. Bd5+ {[%clk 0:01:03]}  Kg7 {[%clk 0:00:57]} 25. Ne6+ {[%clk 0:01:04]}  Rxe6 {[%clk 0:00:55]} 26. Bxe6 {[%clk 0:01:04]}  Bxa1 {[%clk 0:00:55]} 27. Rxa1 {[%clk 0:00:52]}  Nd4 {[%clk 0:00:54]} 28. Bd5 {[%clk 0:00:51]}  Rf2 {[%clk 0:00:53]} 29. Rd1 {[%clk 0:00:46]}  Nf5 {[%clk 0:00:42]} 30. Be6 {[%clk 0:00:38]}  Ne3 {[%clk 0:00:41]} 31. Re1 {[%clk 0:00:39]}  Rf1+ {[%clk 0:00:37]} 32. Rxf1 {[%clk 0:00:37]}  Nxf1 {[%clk 0:00:38]} 33. Kg1 {[%clk 0:00:38]}  Nd2 {[%clk 0:00:34]} 34. Kf2 {[%clk 0:00:38]}  Kf6 {[%clk 0:00:34]} 35. Ke3 {[%clk 0:00:36]}  Nf1+ {[%clk 0:00:29]} 36. Kf2 {[%clk 0:00:35]}  Kxe6 {[%clk 0:00:21]} 37. Kxf1 {[%clk 0:00:36]}  Ke5 {[%clk 0:00:21]} 38. Ke2 {[%clk 0:00:37]}  Kd4 {[%clk 0:00:21]} 39. Kd2 {[%clk 0:00:34]}  Kxc4 {[%clk 0:00:22]} 40. Kc2 {[%clk 0:00:34]}  d5 {[%clk 0:00:21]} 41. h4 {[%clk 0:00:33]}  Kd4 {[%clk 0:00:20]} 42. Kd2 {[%clk 0:00:33]}  Ke4 {[%clk 0:00:20]} 43. g4 {[%clk 0:00:31]}  Kf4 {[%clk 0:00:20]} 44. g5 {[%clk 0:00:31]}  Kg4 {[%clk 0:00:20]} 45. Ke3 {[%clk 0:00:32]}  Kxh4 {[%clk 0:00:20]} 46. Kd4 {[%clk 0:00:32]}  Kxg5 {[%clk 0:00:20]} 47. Kxd5 {[%clk 0:00:33]}  h5 {[%clk 0:00:20]} 48. Ke4 {[%clk 0:00:34]}  h4 {[%clk 0:00:20]} 49. Kf3 {[%clk 0:00:35]}  Kf5 {[%clk 0:00:20]} 50. Kg2 {[%clk 0:00:34]}  g5 {[%clk 0:00:21]} 51. Kh3 {[%clk 0:00:34]}  Ke4 {[%clk 0:00:21]} 52. Kg4 {[%clk 0:00:35]}  Kd3 {[%clk 0:00:22]} 53. Kxg5 {[%clk 0:00:36]}  h3 {[%clk 0:00:21]} 54. Kh4 {[%clk 0:00:37]}  h2 {[%clk 0:00:22]} 55. Kh3 {[%clk 0:00:37]}  h1=Q+ {[%clk 0:00:22]} 56. Kg3 {[%clk 0:00:38]}  Qa1 {[%clk 0:00:22]} 57. Kg4 {[%clk 0:00:39]}  Qxa2 {[%clk 0:00:22]} 58. Kf4 {[%clk 0:00:40]}  Qb2 {[%clk 0:00:23]} 59. Kf5 {[%clk 0:00:40]}  a5 {[%clk 0:00:23]} 60. Ke6 {[%clk 0:00:41]}  a4 {[%clk 0:00:24]} 61. Kd5 {[%clk 0:00:41]}  a3 {[%clk 0:00:25]} 62. Kc5 {[%clk 0:00:42]}  a2 {[%clk 0:00:26]} 63. Kc6 {[%clk 0:00:42]}  a1=Q {[%clk 0:00:26]} 64. Kc5 {[%clk 0:00:43]}  Qaa3+ {[%clk 0:00:26]} 65. Kc6 {[%clk 0:00:43]}  Qbc3+ {[%clk 0:00:25]} 66. Kd7 {[%clk 0:00:43]}  Qa7+ {[%clk 0:00:24]} 67. Ke8 {[%clk 0:00:44]}  Qc8# {[%clk 0:00:24]} 0-1

[Event "November 21 Late 2023"]
[Site "https://www.chess.com"]
[Date "2023.11.21"]
[Round "4"]
[White "Rose, Felix"]
[Black "FuenfgegenWilly"]
[Result "0-1"]
[Board "119"]
[TimeControl "180+1"]
[WhiteFideId "5105722"]
[WhiteElo "2039"]
[BlackElo "2483"]
[WhiteTeam "MEX"]
[WhiteClock "0:00:00"]
[BlackClock "0:00:13"]

1. e4 {[%clk 0:03:00]}  Na6 {[%clk 0:02:59]} 2. d4 {[%clk 0:02:59]}  c6 {[%clk 0:02:59]} 3. Nc3 {[%clk 0:02:56]}  Nc7 {[%clk 0:02:59]} 4. d5 {[%clk 0:02:52]}  Nf6 {[%clk 0:02:48]} 5. Nf3 {[%clk 0:02:49]}  g6 {[%clk 0:02:38]} 6. a4 {[%clk 0:02:48]}  Bg7 {[%clk 0:02:36]} 7. Bc4 {[%clk 0:02:47]}  O-O {[%clk 0:02:29]} 8. Ba2 {[%clk 0:02:45]}  d6 {[%clk 0:02:27]} 9. O-O {[%clk 0:02:41]}  c5 {[%clk 0:02:24]} 10. h3 {[%clk 0:02:40]}  a6 {[%clk 0:02:22]} 11. Bc4 {[%clk 0:02:32]}  Rb8 {[%clk 0:02:22]} 12. a5 {[%clk 0:02:31]}  b5 {[%clk 0:02:18]} 13. axb6 {[%clk 0:02:18]}  Rxb6 {[%clk 0:02:18]} 14. Re1 {[%clk 0:02:02]}  Nd7 {[%clk 0:02:07]} 15. Qd3 {[%clk 0:01:58]}  Ne5 {[%clk 0:01:53]} 16. Nxe5 {[%clk 0:01:58]}  Bxe5 {[%clk 0:01:54]} 17. b3 {[%clk 0:01:53]}  f5 {[%clk 0:01:45]} 18. Bh6 {[%clk 0:01:48]}  Rf7 {[%clk 0:01:44]} 19. Ra4 {[%clk 0:01:32]}  f4 {[%clk 0:01:37]} 20. f3 {[%clk 0:01:01]}  Bd7 {[%clk 0:01:36]} 21. Ra2 {[%clk 0:00:56]}  Qc8 {[%clk 0:01:36]} 22. Kh2 {[%clk 0:00:52]}  g5 {[%clk 0:01:18]} 23. Bxg5 {[%clk 0:00:47]}  Rg7 {[%clk 0:01:18]} 24. h4 {[%clk 0:00:32]}  Rg6 {[%clk 0:01:09]} 25. Ne2 {[%clk 0:00:32]}  Qf8 {[%clk 0:00:56]} 26. Qd2 {[%clk 0:00:27]}  h6 {[%clk 0:00:50]} 27. Bxf4 {[%clk 0:00:26]}  Qg7 {[%clk 0:00:50]} 28. g3 {[%clk 0:00:15]}  Rb8 {[%clk 0:00:29]} 29. Bxe5 {[%clk 0:00:15]}  Qxe5 {[%clk 0:00:27]} 30. Qf4 {[%clk 0:00:15]}  Qg7 {[%clk 0:00:26]} 31. g4 {[%clk 0:00:15]}  Rf8 {[%clk 0:00:26]} 32. Qe3 {[%clk 0:00:15]}  Kh7 {[%clk 0:00:18]} 33. h5 {[%clk 0:00:15]}  Rg5 {[%clk 0:00:19]} 34. Rg1 {[%clk 0:00:15]}  Ne8 {[%clk 0:00:18]} 35. Bxa6 {[%clk 0:00:13]}  Nf6 {[%clk 0:00:18]} 36. Rg3 {[%clk 0:00:12]}  Rg8 {[%clk 0:00:17]} 37. Qf2 {[%clk 0:00:08]}  Bxg4 {[%clk 0:00:13]} 38. fxg4 {[%clk 0:00:06]}  Nxg4+ {[%clk 0:00:14]} 39. Rxg4 {[%clk 0:00:07]}  Rxg4 {[%clk 0:00:15]} 40. Qf5+ {[%clk 0:00:07]}  Kh8 {[%clk 0:00:15]} 41. Kh3 {[%clk 0:00:00]}  Rg3+ {[%clk 0:00:13]} 0-1

[Event "November 21 Late 2023"]
[Site "https://www.chess.com"]
[Date "2023.11.21"]
[Round "4"]
[White "Jesseinkman"]
[Black "Vemparala, Nikash"]
[Result "1-0"]
[Board "120"]
[TimeControl "180+1"]
[BlackFideId "30960967"]
[WhiteElo "2481"]
[BlackElo "2069"]
[BlackTeam "USA"]
[WhiteClock "0:01:37"]
[BlackClock "0:00:07"]

1. d4 {[%clk 0:03:00]}  Nf6 {[%clk 0:02:58]} 2. Nf3 {[%clk 0:03:01]}  e6 {[%clk 0:02:58]} 3. e3 {[%clk 0:03:01]}  d5 {[%clk 0:02:58]} 4. b3 {[%clk 0:03:02]}  c5 {[%clk 0:02:58]} 5. Bb2 {[%clk 0:03:01]}  Nc6 {[%clk 0:02:58]} 6. Bd3 {[%clk 0:03:00]}  b6 {[%clk 0:02:57]} 7. O-O {[%clk 0:02:58]}  Bb7 {[%clk 0:02:57]} 8. Nbd2 {[%clk 0:02:58]}  Bd6 {[%clk 0:02:56]} 9. Ne5 {[%clk 0:02:59]}  O-O {[%clk 0:02:51]} 10. f4 {[%clk 0:02:58]}  Nd7 {[%clk 0:02:45]} 11. Qh5 {[%clk 0:02:52]}  Nf6 {[%clk 0:02:37]} 12. Qh3 {[%clk 0:02:52]}  h6 {[%clk 0:02:34]} 13. a3 {[%clk 0:02:51]}  Ne7 {[%clk 0:02:27]} 14. g4 {[%clk 0:02:39]}  Ne4 {[%clk 0:02:16]} 15. Nxe4 {[%clk 0:02:39]}  dxe4 {[%clk 0:02:16]} 16. Bc4 {[%clk 0:02:33]}  a6 {[%clk 0:02:07]} 17. a4 {[%clk 0:02:31]}  Bd5 {[%clk 0:02:07]} 18. f5 {[%clk 0:02:19]}  exf5 {[%clk 0:01:52]} 19. gxf5 {[%clk 0:02:20]}  Bxe5 {[%clk 0:01:52]} 20. dxe5 {[%clk 0:02:17]}  Bxc4 {[%clk 0:01:52]} 21. bxc4 {[%clk 0:02:18]}  Qd7 {[%clk 0:01:10]} 22. e6 {[%clk 0:02:05]}  fxe6 {[%clk 0:01:00]} 23. fxe6 {[%clk 0:02:06]}  Qd2 {[%clk 0:00:42]} 24. Qg3 {[%clk 0:01:49]}  g6 {[%clk 0:00:36]} 25. Qe5 {[%clk 0:01:39]}  Qxe3+ {[%clk 0:00:35]} 26. Kh1 {[%clk 0:01:39]}  Rxf1+ {[%clk 0:00:08]} 27. Rxf1 {[%clk 0:01:40]}  Nf5 {[%clk 0:00:07]} 28. Qh8# {[%clk 0:01:37]} 1-0

[Event "November 21 Late 2023"]
[Site "https://www.chess.com"]
[Date "2023.11.21"]
[Round "4"]
[White "Bazzano, Sebastian"]
[Black "Osmak, Yuliia"]
[Result "0-1"]
[Board "121"]
[TimeControl "180+1"]
[WhiteFideId "104566"]
[BlackFideId "14101602"]
[WhiteElo "2286"]
[BlackElo "2303"]
[WhiteTeam "ARG"]
[BlackTeam "UKR"]
[WhiteClock "0:00:31"]
[BlackClock "0:01:04"]

1. d4 {[%clk 0:02:59]}  d6 {[%clk 0:02:56]} 2. e4 {[%clk 0:02:58]}  Nf6 {[%clk 0:02:56]} 3. Nc3 {[%clk 0:02:58]}  c6 {[%clk 0:02:56]} 4. Bf4 {[%clk 0:02:59]}  Qa5 {[%clk 0:02:54]} 5. Qd2 {[%clk 0:02:59]}  e5 {[%clk 0:02:53]} 6. Be3 {[%clk 0:02:58]}  Be7 {[%clk 0:02:50]} 7. h3 {[%clk 0:02:56]}  O-O {[%clk 0:02:46]} 8. Nf3 {[%clk 0:02:56]}  Nbd7 {[%clk 0:02:43]} 9. Be2 {[%clk 0:02:52]}  b5 {[%clk 0:02:41]} 10. Bd3 {[%clk 0:02:52]}  b4 {[%clk 0:02:39]} 11. Ne2 {[%clk 0:02:51]}  c5 {[%clk 0:02:21]} 12. dxe5 {[%clk 0:02:41]}  Nxe5 {[%clk 0:02:16]} 13. Nxe5 {[%clk 0:02:35]}  dxe5 {[%clk 0:02:17]} 14. Ng3 {[%clk 0:02:35]}  Rd8 {[%clk 0:02:04]} 15. Qe2 {[%clk 0:02:35]}  Bb7 {[%clk 0:01:50]} 16. Nf5 {[%clk 0:02:20]}  Qc7 {[%clk 0:01:31]} 17. Bg5 {[%clk 0:01:55]}  h6 {[%clk 0:01:30]} 18. Nxe7+ {[%clk 0:01:45]}  Qxe7 {[%clk 0:01:29]} 19. Bxf6 {[%clk 0:01:39]}  Qxf6 {[%clk 0:01:27]} 20. O-O {[%clk 0:01:39]}  Rd4 {[%clk 0:01:24]} 21. c3 {[%clk 0:01:35]}  Rd6 {[%clk 0:01:13]} 22. Bc4 {[%clk 0:01:17]}  Rad8 {[%clk 0:01:09]} 23. Rad1 {[%clk 0:01:04]}  Rxd1 {[%clk 0:01:06]} 24. Re1 {[%clk 0:00:31]}  R1d2 {[%clk 0:01:04]} 0-1